[Event "Late-Titled-Tuesday-Blitz-April-16-2024"]
[Site "Chess.com"]
[Date "2024.04.16"]
[Round "9"]
[White "AlphaGoosee"]
[Black "Denisenko_Denis"]
[Result "1/2-1/2"]
[WhiteElo "2575"]
[BlackElo "2437"]
[TimeControl "180+1"]
[EndTime "15:45:02 PDT"]
[Termination "Game drawn by repetition"]

1. e4 {[%clk 0:02:58.9]} 1... e5 {[%clk 0:02:59]} 2. Nf3 {[%clk 0:02:58.4]} 2...
Nf6 {[%clk 0:02:58.7]} 3. d4 {[%clk 0:02:59]} 3... Nxe4 {[%clk 0:02:57.4]} 4.
Bd3 {[%clk 0:02:59.6]} 4... d5 {[%clk 0:02:57.1]} 5. Nxe5 {[%clk 0:03:00.3]}
5... Nd7 {[%clk 0:02:56.4]} 6. Nxd7 {[%clk 0:03:00.9]} 6... Bxd7 {[%clk
0:02:56.6]} 7. O-O {[%clk 0:03:01.6]} 7... Bd6 {[%clk 0:02:56.2]} 8. c4 {[%clk
0:03:02.2]} 8... c6 {[%clk 0:02:56.1]} 9. Nc3 {[%clk 0:03:02.7]} 9... Nxc3
{[%clk 0:02:55.6]} 10. bxc3 {[%clk 0:03:03.6]} 10... O-O {[%clk 0:02:54.5]} 11.
cxd5 {[%clk 0:03:03.7]} 11... cxd5 {[%clk 0:02:54.2]} 12. Qh5 {[%clk 0:03:03.7]}
12... f5 {[%clk 0:02:53.4]} 13. Qf3 {[%clk 0:03:03.8]} 13... Be6 {[%clk
0:02:41.7]} 14. Re1 {[%clk 0:02:59.9]} 14... Qd7 {[%clk 0:02:41.3]} 15. Bf4
{[%clk 0:02:52.9]} 15... Rae8 {[%clk 0:02:38.8]} 16. Bxd6 {[%clk 0:02:50.3]}
16... Qxd6 {[%clk 0:02:38.7]} 17. Rab1 {[%clk 0:02:47.5]} 17... b6 {[%clk
0:02:34]} 18. Re5 {[%clk 0:02:45.8]} 18... g6 {[%clk 0:02:29.9]} 19. h4 {[%clk
0:02:44.4]} 19... Bf7 {[%clk 0:02:29.6]} 20. Rbe1 {[%clk 0:02:42.6]} 20... Rxe5
{[%clk 0:02:28.7]} 21. Rxe5 {[%clk 0:02:43.5]} 21... Re8 {[%clk 0:02:28.1]} 22.
Rxe8+ {[%clk 0:02:37]} 22... Bxe8 {[%clk 0:02:29]} 23. Bc2 {[%clk 0:02:37.2]}
23... Bf7 {[%clk 0:02:26.6]} 24. Qe3 {[%clk 0:02:35.3]} 24... Qe6 {[%clk
0:02:21.7]} 25. Qd2 {[%clk 0:02:31.7]} 25... Qf6 {[%clk 0:02:18.5]} 26. g3
{[%clk 0:02:30.9]} 26... Kg7 {[%clk 0:02:16.4]} 27. Bb3 {[%clk 0:02:29.8]} 27...
Qe7 {[%clk 0:02:12.9]} 28. Qd3 {[%clk 0:02:17.1]} 28... Qe4 {[%clk 0:02:04.6]}
29. Qd2 {[%clk 0:02:16.9]} 29... h6 {[%clk 0:02:00.2]} 30. Bc2 {[%clk
0:02:16.6]} 30... Qe7 {[%clk 0:01:58]} 31. Bd3 {[%clk 0:02:16.3]} 31... Be8
{[%clk 0:01:36]} 32. Bf1 {[%clk 0:02:13.6]} 32... Bf7 {[%clk 0:01:26.1]} 33. Bg2
{[%clk 0:02:12.2]} 33... g5 {[%clk 0:01:25.2]} 34. hxg5 {[%clk 0:02:08.8]} 34...
hxg5 {[%clk 0:01:26.1]} 35. c4 {[%clk 0:01:56.3]} 35... dxc4 {[%clk 0:01:20.8]}
36. d5 {[%clk 0:01:53.6]} 36... Qd6 {[%clk 0:00:58.8]} 37. Qd4+ {[%clk
0:01:28.1]} 37... Kg6 {[%clk 0:00:53.9]} 38. Qxc4 {[%clk 0:01:27.8]} 38... Qc5
{[%clk 0:00:48.7]} 39. Qd3 {[%clk 0:01:03.1]} 39... Qd6 {[%clk 0:00:48.5]} 40.
Qe3 {[%clk 0:01:01]} 40... Kf6 {[%clk 0:00:45.8]} 41. Qc3+ {[%clk 0:00:58.2]}
41... Kg6 {[%clk 0:00:40.2]} 42. a4 {[%clk 0:00:44.9]} 42... a6 {[%clk
0:00:28.6]} 43. Qc6 {[%clk 0:00:40]} 43... Qxc6 {[%clk 0:00:25.6]} 44. dxc6
{[%clk 0:00:40.9]} 44... Be6 {[%clk 0:00:24.3]} 45. c7 {[%clk 0:00:40.6]} 45...
Bc8 {[%clk 0:00:24.3]} 46. f4 {[%clk 0:00:24.2]} 46... gxf4 {[%clk 0:00:24.2]}
47. gxf4 {[%clk 0:00:25.1]} 47... Kf6 {[%clk 0:00:24.9]} 48. Kf2 {[%clk
0:00:25.7]} 48... Ke7 {[%clk 0:00:25.2]} 49. Ke3 {[%clk 0:00:25.5]} 49... Kd6
{[%clk 0:00:25.7]} 50. Kd4 {[%clk 0:00:25.9]} 50... Kxc7 {[%clk 0:00:23.8]} 51.
Ke5 {[%clk 0:00:26.8]} 51... Bd7 {[%clk 0:00:22.8]} 52. Bh3 {[%clk 0:00:25.9]}
52... Bxa4 {[%clk 0:00:21.7]} 53. Bxf5 {[%clk 0:00:26.3]} 53... a5 {[%clk
0:00:19.5]} 54. Bd3 {[%clk 0:00:17.4]} 54... Be8 {[%clk 0:00:16.7]} 55. f5
{[%clk 0:00:16.7]} 55... b5 {[%clk 0:00:15.3]} 56. Ke6 {[%clk 0:00:16.9]} 56...
Kb6 {[%clk 0:00:14]} 57. Ke7 {[%clk 0:00:09.3]} 57... Bh5 {[%clk 0:00:13.2]} 58.
f6 {[%clk 0:00:09.5]} 58... a4 {[%clk 0:00:13.1]} 59. Be2 {[%clk 0:00:09.1]}
59... Bg6 {[%clk 0:00:11.8]} 60. Bd3 {[%clk 0:00:08]} 60... Bh5 {[%clk
0:00:10.2]} 61. Be2 {[%clk 0:00:07.8]} 61... Bg6 {[%clk 0:00:09.6]} 62. Bd3
{[%clk 0:00:07]} 62... Bh5 {[%clk 0:00:09]} 1/2-1/2

[Event "Late-Titled-Tuesday-Blitz-April-16-2024"]
[Site "Chess.com"]
[Date "2024.04.16"]
[Round "9"]
[White "martinmena"]
[Black "Allion2017"]
[Result "1-0"]
[WhiteElo "2192"]
[BlackElo "2253"]
[TimeControl "180+1"]
[EndTime "15:45:02 PDT"]
[Termination "martinmena won on time"]

1. c4 {[%clk 0:03:00.9]} 1... Nf6 {[%clk 0:02:59]} 2. g3 {[%clk 0:02:56.6]} 2...
e6 {[%clk 0:02:58.3]} 3. Bg2 {[%clk 0:02:55.3]} 3... d5 {[%clk 0:02:58.8]} 4.
Nf3 {[%clk 0:02:45.7]} 4... Be7 {[%clk 0:02:59]} 5. O-O {[%clk 0:02:43.1]} 5...
O-O {[%clk 0:02:58.8]} 6. d4 {[%clk 0:02:43.3]} 6... dxc4 {[%clk 0:02:56.6]} 7.
Qc2 {[%clk 0:02:39.8]} 7... b5 {[%clk 0:02:54.9]} 8. a4 {[%clk 0:02:32.9]} 8...
c6 {[%clk 0:02:52]} 9. Nc3 {[%clk 0:02:19.4]} 9... b4 {[%clk 0:02:25.9]} 10. Ne4
{[%clk 0:02:00.6]} 10... Nxe4 {[%clk 0:02:10.5]} 11. Qxe4 {[%clk 0:02:01.5]}
11... Bb7 {[%clk 0:02:09.8]} 12. Ne5 {[%clk 0:02:00.2]} 12... a5 {[%clk
0:01:50.6]} 13. Nxc4 {[%clk 0:01:50]} 13... Nd7 {[%clk 0:01:41.6]} 14. b3 {[%clk
0:01:41.5]} 14... Ra7 {[%clk 0:01:35.9]} 15. Qd3 {[%clk 0:01:32.6]} 15... c5
{[%clk 0:01:31.1]} 16. Bb2 {[%clk 0:01:28.4]} 16... Bxg2 {[%clk 0:01:28.3]} 17.
Kxg2 {[%clk 0:01:27.6]} 17... Bf6 {[%clk 0:01:24.2]} 18. Rfd1 {[%clk 0:00:37.7]}
18... Qa8+ {[%clk 0:01:21.3]} 19. Kg1 {[%clk 0:00:35.6]} 19... cxd4 {[%clk
0:01:17.5]} 20. Bxd4 {[%clk 0:00:34.5]} 20... Bxd4 {[%clk 0:01:17.5]} 21. Qxd4
{[%clk 0:00:35.4]} 21... Nf6 {[%clk 0:01:17]} 22. Nb6 {[%clk 0:00:28.4]} 22...
Qe4 {[%clk 0:01:08.7]} 23. e3 {[%clk 0:00:21.3]} 23... Rb7 {[%clk 0:00:59.9]}
24. Qxe4 {[%clk 0:00:04.3]} 24... Nxe4 {[%clk 0:00:58.3]} 25. Nc4 {[%clk
0:00:05.2]} 25... Nc3 {[%clk 0:00:53.2]} 26. Rd3 {[%clk 0:00:05.1]} 26... Ra8
{[%clk 0:00:46.7]} 27. Rc1 {[%clk 0:00:02.8]} 27... Kf8 {[%clk 0:00:46]} 28. Rc2
{[%clk 0:00:02.8]} 28... Ke7 {[%clk 0:00:44.5]} 29. Rcd2 {[%clk 0:00:03.2]}
29... Nd5 {[%clk 0:00:31.8]} 30. Rd4 {[%clk 0:00:03.1]} 30... Raa7 {[%clk
0:00:25.8]} 31. e4 {[%clk 0:00:03]} 31... Nc3 {[%clk 0:00:22.7]} 32. Nd6 {[%clk
0:00:03]} 32... Rc7 {[%clk 0:00:19.2]} 33. Nb5 {[%clk 0:00:02.5]} 33... Nxb5
{[%clk 0:00:17.7]} 34. axb5 {[%clk 0:00:03.4]} 34... Rab7 {[%clk 0:00:17.8]} 35.
Rc4 {[%clk 0:00:03.2]} 35... Rd7 {[%clk 0:00:15.8]} 36. Rxd7+ {[%clk 0:00:02.1]}
36... Kxd7 {[%clk 0:00:15.6]} 37. Rc5 {[%clk 0:00:02.7]} 37... Kd6 {[%clk
0:00:15]} 38. Rc6+ {[%clk 0:00:03.2]} 38... Kd7 {[%clk 0:00:14]} 39. Rc5 {[%clk
0:00:03]} 39... Rb6 {[%clk 0:00:13]} 40. e5 {[%clk 0:00:02.9]} 40... f6 {[%clk
0:00:11.9]} 41. f4 {[%clk 0:00:02.6]} 41... fxe5 {[%clk 0:00:08.7]} 42. fxe5
{[%clk 0:00:03.5]} 42... g6 {[%clk 0:00:07.4]} 43. Kf2 {[%clk 0:00:04]} 43...
Rb8 {[%clk 0:00:06.5]} 44. Ke3 {[%clk 0:00:04.6]} 44... Rf8 {[%clk 0:00:06.3]}
45. b6 {[%clk 0:00:04.6]} 45... Rb8 {[%clk 0:00:06]} 46. Rc7+ {[%clk 0:00:04.4]}
46... Kd8 {[%clk 0:00:05.3]} 47. Rc6 {[%clk 0:00:05.1]} 47... Kd7 {[%clk
0:00:05]} 48. Rd6+ {[%clk 0:00:05.8]} 48... Ke7 {[%clk 0:00:04.7]} 49. Kd4
{[%clk 0:00:06]} 49... Rc8 {[%clk 0:00:04.3]} 50. b7 {[%clk 0:00:05.7]} 50...
Rb8 {[%clk 0:00:04.6]} 51. Rb6 {[%clk 0:00:06.3]} 51... Kd7 {[%clk 0:00:05.1]}
52. Kc5 {[%clk 0:00:05.4]} 52... Kc7 {[%clk 0:00:05.1]} 53. Rc6+ {[%clk
0:00:02.6]} 53... Kxb7 {[%clk 0:00:03.6]} 54. Rxe6 {[%clk 0:00:03.3]} 54... Kc7
{[%clk 0:00:02.1]} 55. Re7+ {[%clk 0:00:03.1]} 55... Kd8 {[%clk 0:00:02.3]} 56.
Rxh7 {[%clk 0:00:03.7]} 1-0

[Event "Late-Titled-Tuesday-Blitz-April-16-2024"]
[Site "Chess.com"]
[Date "2024.04.16"]
[Round "9"]
[White "azikom"]
[Black "Rawnsdale"]
[Result "1-0"]
[WhiteElo "2698"]
[BlackElo "2492"]
[TimeControl "180+1"]
[EndTime "15:45:03 PDT"]
[Termination "azikom won by checkmate"]

1. Nf3 {[%clk 0:03:00]} 1... d5 {[%clk 0:02:59]} 2. c4 {[%clk 0:02:59.6]} 2...
e6 {[%clk 0:02:59.1]} 3. e3 {[%clk 0:02:58.3]} 3... Be7 {[%clk 0:02:57]} 4. b3
{[%clk 0:02:56.9]} 4... Nf6 {[%clk 0:02:56.9]} 5. Bb2 {[%clk 0:02:56.9]} 5...
O-O {[%clk 0:02:57.4]} 6. d4 {[%clk 0:02:57.4]} 6... Nbd7 {[%clk 0:02:55.8]} 7.
Nc3 {[%clk 0:02:57.8]} 7... c5 {[%clk 0:02:55.3]} 8. cxd5 {[%clk 0:02:57.3]}
8... Nxd5 {[%clk 0:02:55]} 9. Nxd5 {[%clk 0:02:56.8]} 9... exd5 {[%clk
0:02:55.3]} 10. Be2 {[%clk 0:02:54.7]} 10... Bf6 {[%clk 0:02:54.5]} 11. O-O
{[%clk 0:02:53.1]} 11... Qe7 {[%clk 0:02:43.1]} 12. Rc1 {[%clk 0:02:52]} 12...
Rd8 {[%clk 0:02:42.4]} 13. Qd2 {[%clk 0:02:50.5]} 13... b6 {[%clk 0:02:42.3]}
14. dxc5 {[%clk 0:02:36]} 14... Bxb2 {[%clk 0:02:41.9]} 15. Qxb2 {[%clk
0:02:36.9]} 15... Nxc5 {[%clk 0:02:40.1]} 16. b4 {[%clk 0:02:32.9]} 16... Ne4
{[%clk 0:02:36.8]} 17. Nd4 {[%clk 0:02:31.5]} 17... Bb7 {[%clk 0:02:36.1]} 18.
a3 {[%clk 0:02:26.1]} 18... Rac8 {[%clk 0:02:33.1]} 19. Bd3 {[%clk 0:02:19.6]}
19... Qf6 {[%clk 0:02:27.4]} 20. h3 {[%clk 0:02:09.3]} 20... h6 {[%clk 0:02:22]}
21. Rfd1 {[%clk 0:02:00.9]} 21... Nd6 {[%clk 0:01:56.5]} 22. Qe2 {[%clk
0:01:54.2]} 22... Qg5 {[%clk 0:01:39.9]} 23. Ba6 {[%clk 0:01:33.9]} 23... Rxc1
{[%clk 0:01:23.9]} 24. Rxc1 {[%clk 0:01:33.1]} 24... Bxa6 {[%clk 0:01:24.2]} 25.
Qxa6 {[%clk 0:01:32.1]} 25... Nc4 {[%clk 0:01:24.6]} 26. Rc3 {[%clk 0:00:39.3]}
26... Qe7 {[%clk 0:01:13.1]} 27. Nc6 {[%clk 0:00:36]} 27... Qf6 {[%clk
0:01:08.9]} 28. Rxc4 {[%clk 0:00:17.3]} 28... dxc4 {[%clk 0:01:06.5]} 29. Nxd8
{[%clk 0:00:17.3]} 29... Qxd8 {[%clk 0:01:03]} 30. Qxc4 {[%clk 0:00:16.6]} 30...
Qd1+ {[%clk 0:01:03.1]} 31. Kh2 {[%clk 0:00:16.3]} 31... Qd6+ {[%clk 0:01:03.7]}
32. g3 {[%clk 0:00:15.2]} 32... Qf6 {[%clk 0:00:59.2]} 33. Kg2 {[%clk 0:00:14]}
33... Qb2 {[%clk 0:00:53]} 34. Qd3 {[%clk 0:00:13.5]} 34... Qe5 {[%clk
0:00:51.7]} 35. e4 {[%clk 0:00:12.6]} 35... h5 {[%clk 0:00:49.9]} 36. Qd8+
{[%clk 0:00:11.9]} 36... Kh7 {[%clk 0:00:50]} 37. Qd5 {[%clk 0:00:12.3]} 37...
Qc3 {[%clk 0:00:45.3]} 38. Qxf7 {[%clk 0:00:09.5]} 38... Qxa3 {[%clk 0:00:43]}
39. Qxh5+ {[%clk 0:00:08.1]} 39... Kg8 {[%clk 0:00:43.4]} 40. b5 {[%clk
0:00:08.4]} 40... Qe7 {[%clk 0:00:39.9]} 41. Qd5+ {[%clk 0:00:08.5]} 41... Kf8
{[%clk 0:00:39.2]} 42. h4 {[%clk 0:00:08.8]} 42... Qb4 {[%clk 0:00:26]} 43. h5
{[%clk 0:00:08.6]} 43... Qc3 {[%clk 0:00:17.7]} 44. Qf5+ {[%clk 0:00:07.9]}
44... Kg8 {[%clk 0:00:17.2]} 45. Qd5+ {[%clk 0:00:07.6]} 45... Kh7 {[%clk
0:00:16.4]} 46. Qf5+ {[%clk 0:00:07.1]} 46... Kg8 {[%clk 0:00:15.1]} 47. Qg6
{[%clk 0:00:06.5]} 47... Kf8 {[%clk 0:00:13.3]} 48. Qe6 {[%clk 0:00:05.4]} 48...
Qd3 {[%clk 0:00:09.6]} 49. Qf5+ {[%clk 0:00:05]} 49... Kg8 {[%clk 0:00:09.5]}
50. g4 {[%clk 0:00:04.9]} 50... Qd4 {[%clk 0:00:08.9]} 51. Qd5+ {[%clk
0:00:04.5]} 51... Qxd5 {[%clk 0:00:09]} 52. exd5 {[%clk 0:00:05.4]} 52... Kf8
{[%clk 0:00:09.7]} 53. g5 {[%clk 0:00:05.8]} 53... Ke7 {[%clk 0:00:10.1]} 54. f4
{[%clk 0:00:06.2]} 54... Kd6 {[%clk 0:00:10.5]} 55. h6 {[%clk 0:00:06.6]} 55...
gxh6 {[%clk 0:00:10.6]} 56. gxh6 {[%clk 0:00:07.5]} 56... Kxd5 {[%clk
0:00:11.5]} 57. h7 {[%clk 0:00:07.8]} 57... Kc5 {[%clk 0:00:12.4]} 58. h8=Q
{[%clk 0:00:08.6]} 58... Kxb5 {[%clk 0:00:13.3]} 59. Qg7 {[%clk 0:00:09]} 59...
a5 {[%clk 0:00:14.2]} 60. Qb2+ {[%clk 0:00:09.2]} 60... Ka4 {[%clk 0:00:14.6]}
61. f5 {[%clk 0:00:09.6]} 61... b5 {[%clk 0:00:15.5]} 62. f6 {[%clk 0:00:09.8]}
62... b4 {[%clk 0:00:16.4]} 63. f7 {[%clk 0:00:10.3]} 63... Kb5 {[%clk
0:00:17.3]} 64. f8=Q {[%clk 0:00:10.5]} 64... a4 {[%clk 0:00:18.2]} 65. Qf5+
{[%clk 0:00:10.6]} 65... Kc4 {[%clk 0:00:18.3]} 66. Qe4+ {[%clk 0:00:10.5]}
66... Kb5 {[%clk 0:00:18.4]} 67. Qbe5+ {[%clk 0:00:11]} 67... Ka6 {[%clk
0:00:19.3]} 68. Qg6+ {[%clk 0:00:11.2]} 68... Ka7 {[%clk 0:00:19.8]} 69. Qe7+
{[%clk 0:00:11.7]} 69... Ka8 {[%clk 0:00:20.7]} 70. Qg8# {[%clk 0:00:12.3]} 1-0

[Event "Late-Titled-Tuesday-Blitz-April-16-2024"]
[Site "Chess.com"]
[Date "2024.04.16"]
[Round "9"]
[White "maximnovik"]
[Black "cedchass2006"]
[Result "1-0"]
[WhiteElo "2578"]
[BlackElo "2408"]
[TimeControl "180+1"]
[EndTime "15:45:08 PDT"]
[Termination "maximnovik won by checkmate"]

1. e4 {[%clk 0:03:00.5]} 1... e5 {[%clk 0:02:31.9]} 2. Nf3 {[%clk 0:03:00.3]}
2... Nf6 {[%clk 0:02:29.4]} 3. Nxe5 {[%clk 0:02:58.3]} 3... Nxe4 {[%clk
0:02:29.2]} 4. Qe2 {[%clk 0:02:50.8]} 4... Qe7 {[%clk 0:02:15.4]} 5. Qxe4 {[%clk
0:02:45.1]} 5... d6 {[%clk 0:02:15.2]} 6. d4 {[%clk 0:02:36.6]} 6... dxe5 {[%clk
0:02:14]} 7. dxe5 {[%clk 0:02:35.9]} 7... Nc6 {[%clk 0:02:13.6]} 8. Bb5 {[%clk
0:02:27.7]} 8... Bd7 {[%clk 0:02:12.9]} 9. O-O {[%clk 0:02:27.6]} 9... O-O-O
{[%clk 0:02:10.4]} 10. Re1 {[%clk 0:02:21.2]} 10... Nxe5 {[%clk 0:01:54]} 11.
Bxd7+ {[%clk 0:02:19.9]} 11... Rxd7 {[%clk 0:01:51.8]} 12. Nc3 {[%clk
0:02:13.7]} 12... Nc6 {[%clk 0:01:49]} 13. Bf4 {[%clk 0:01:56.7]} 13... Qxe4
{[%clk 0:01:48.5]} 14. Rxe4 {[%clk 0:01:56.1]} 14... Bb4 {[%clk 0:01:43.2]} 15.
Ne2 {[%clk 0:01:42.8]} 15... Bd6 {[%clk 0:01:36.7]} 16. c3 {[%clk 0:01:32.2]}
16... Bxf4 {[%clk 0:01:35.9]} 17. Nxf4 {[%clk 0:01:32.3]} 17... Rd2 {[%clk
0:01:35.5]} 18. Re2 {[%clk 0:01:27]} 18... Rxe2 {[%clk 0:01:33.8]} 19. Nxe2
{[%clk 0:01:26.9]} 19... Rd8 {[%clk 0:01:34.5]} 20. Kf1 {[%clk 0:01:25]} 20...
Rd2 {[%clk 0:01:33.7]} 21. Rb1 {[%clk 0:01:25.1]} 21... Ne5 {[%clk 0:01:25.2]}
22. Ke1 {[%clk 0:01:25.2]} 22... Rd7 {[%clk 0:01:21.2]} 23. Nd4 {[%clk
0:01:17.9]} 23... c5 {[%clk 0:01:20.4]} 24. Nb3 {[%clk 0:01:17.2]} 24... b6
{[%clk 0:01:19.6]} 25. Ke2 {[%clk 0:01:16.9]} 25... Kc7 {[%clk 0:01:18.8]} 26.
Re1 {[%clk 0:01:10.8]} 26... Nd3 {[%clk 0:01:12.9]} 27. Rb1 {[%clk 0:01:04.1]}
27... a5 {[%clk 0:01:04.4]} 28. a4 {[%clk 0:01:03.1]} 28... Ne5 {[%clk
0:01:03.6]} 29. Nd2 {[%clk 0:01:01.8]} 29... Re7 {[%clk 0:01:00.8]} 30. Kf1
{[%clk 0:00:55.6]} 30... Rd7 {[%clk 0:00:59.4]} 31. Ke2 {[%clk 0:00:54.7]} 31...
f6 {[%clk 0:00:48.9]} 32. f4 {[%clk 0:00:43.4]} 32... Ng6 {[%clk 0:00:41.6]} 33.
g3 {[%clk 0:00:43.5]} 33... Ne7 {[%clk 0:00:40.6]} 34. Nc4 {[%clk 0:00:43.1]}
34... Nc6 {[%clk 0:00:39.7]} 35. Rd1 {[%clk 0:00:42.1]} 35... Re7+ {[%clk
0:00:39.7]} 36. Kf3 {[%clk 0:00:42.1]} 36... Nd8 {[%clk 0:00:33.7]} 37. Rd6
{[%clk 0:00:40.9]} 37... Nb7 {[%clk 0:00:24]} 38. Rd5 {[%clk 0:00:40.8]} 38...
Kc6 {[%clk 0:00:21.9]} 39. Rd3 {[%clk 0:00:39.7]} 39... Re6 {[%clk 0:00:17.9]}
40. f5 {[%clk 0:00:38.4]} 40... Re1 {[%clk 0:00:17]} 41. g4 {[%clk 0:00:37.4]}
41... Re7 {[%clk 0:00:16.2]} 42. h4 {[%clk 0:00:36.7]} 42... h6 {[%clk
0:00:15.2]} 43. Kf4 {[%clk 0:00:35.6]} 43... Re1 {[%clk 0:00:13.8]} 44. Re3
{[%clk 0:00:32.3]} 44... Rxe3 {[%clk 0:00:13.7]} 45. Kxe3 {[%clk 0:00:32.3]}
45... Kd5 {[%clk 0:00:14.6]} 46. b3 {[%clk 0:00:28.8]} 46... Kc6 {[%clk
0:00:14.7]} 47. Ke4 {[%clk 0:00:28.8]} 47... Nd8 {[%clk 0:00:09.4]} 48. Kf4
{[%clk 0:00:26.7]} 48... Nf7 {[%clk 0:00:09.2]} 49. Ke4 {[%clk 0:00:20.6]} 49...
Nd6+ {[%clk 0:00:07.4]} 50. Nxd6 {[%clk 0:00:20.4]} 50... Kxd6 {[%clk
0:00:08.3]} 51. Kf4 {[%clk 0:00:15.5]} 51... Kd5 {[%clk 0:00:08.4]} 52. Ke3
{[%clk 0:00:14.8]} 52... Ke5 {[%clk 0:00:08.5]} 53. Kf3 {[%clk 0:00:15.1]} 53...
Kd5 {[%clk 0:00:08.8]} 54. Kf4 {[%clk 0:00:14.6]} 54... c4 {[%clk 0:00:08]} 55.
b4 {[%clk 0:00:13.7]} 55... axb4 {[%clk 0:00:07.8]} 56. cxb4 {[%clk 0:00:13.9]}
56... Kd4 {[%clk 0:00:05.2]} 57. a5 {[%clk 0:00:13.6]} 57... bxa5 {[%clk
0:00:05.2]} 58. bxa5 {[%clk 0:00:13.9]} 58... Kc5 {[%clk 0:00:05.9]} 59. Ke4
{[%clk 0:00:13.8]} 59... Kb5 {[%clk 0:00:06.1]} 60. Kd4 {[%clk 0:00:14.2]} 60...
Kxa5 {[%clk 0:00:06.1]} 61. Kxc4 {[%clk 0:00:14.5]} 61... Kb6 {[%clk 0:00:06.7]}
62. Kd5 {[%clk 0:00:15.4]} 62... Kc7 {[%clk 0:00:07.3]} 63. Ke6 {[%clk
0:00:16.3]} 63... Kd8 {[%clk 0:00:07.7]} 64. Kf7 {[%clk 0:00:17.2]} 64... Kd7
{[%clk 0:00:08.3]} 65. Kxg7 {[%clk 0:00:17.5]} 65... Ke7 {[%clk 0:00:09.2]} 66.
Kxh6 {[%clk 0:00:17.7]} 66... Kf7 {[%clk 0:00:09.4]} 67. g5 {[%clk 0:00:18]}
67... fxg5 {[%clk 0:00:09.7]} 68. hxg5 {[%clk 0:00:18.5]} 68... Kg8 {[%clk
0:00:10.6]} 69. g6 {[%clk 0:00:19]} 69... Kh8 {[%clk 0:00:11.5]} 70. f6 {[%clk
0:00:17.9]} 70... Kg8 {[%clk 0:00:12.4]} 71. f7+ {[%clk 0:00:18.3]} 71... Kh8
{[%clk 0:00:13.3]} 72. g7# {[%clk 0:00:18.3]} 1-0

[Event "Late-Titled-Tuesday-Blitz-April-16-2024"]
[Site "Chess.com"]
[Date "2024.04.16"]
[Round "9"]
[White "vladislavkovalev"]
[Black "FairChess_on_YouTube"]
[Result "0-1"]
[WhiteElo "2863"]
[BlackElo "3085"]
[TimeControl "180+1"]
[EndTime "15:45:10 PDT"]
[Termination "FairChess_on_YouTube won by resignation"]

1. e4 {[%clk 0:02:59.9]} 1... c5 {[%clk 0:02:59.1]} 2. Nf3 {[%clk 0:03:00]} 2...
Nc6 {[%clk 0:02:59.2]} 3. Bb5 {[%clk 0:03:00.2]} 3... Nf6 {[%clk 0:02:58.9]} 4.
Nc3 {[%clk 0:03:00]} 4... g6 {[%clk 0:02:56.6]} 5. O-O {[%clk 0:02:58.5]} 5...
Bg7 {[%clk 0:02:56.9]} 6. e5 {[%clk 0:02:58.7]} 6... Ng4 {[%clk 0:02:56.6]} 7.
Bxc6 {[%clk 0:02:58.6]} 7... dxc6 {[%clk 0:02:57.5]} 8. Re1 {[%clk 0:02:59.2]}
8... O-O {[%clk 0:02:57.3]} 9. d3 {[%clk 0:02:59.6]} 9... Nh6 {[%clk 0:02:55.9]}
10. h3 {[%clk 0:02:52.9]} 10... Nf5 {[%clk 0:02:55.4]} 11. b3 {[%clk 0:02:38.5]}
11... Nd4 {[%clk 0:02:54.4]} 12. Bb2 {[%clk 0:02:29.5]} 12... b6 {[%clk
0:02:54]} 13. Ne4 {[%clk 0:02:25.3]} 13... Bf5 {[%clk 0:02:44.6]} 14. Ned2
{[%clk 0:02:13.7]} 14... Qd5 {[%clk 0:02:39.5]} 15. a4 {[%clk 0:02:08.7]} 15...
Rad8 {[%clk 0:02:38.1]} 16. Kh2 {[%clk 0:01:49.7]} 16... Bh6 {[%clk 0:02:37.5]}
17. Ne4 {[%clk 0:01:35]} 17... Bf4+ {[%clk 0:02:18.5]} 18. Ng3 {[%clk
0:01:25.7]} 18... Nxf3+ {[%clk 0:02:13.2]} 19. Qxf3 {[%clk 0:01:26.6]} 19...
Qxf3 {[%clk 0:02:13.1]} 20. gxf3 {[%clk 0:01:27.5]} 20... Be6 {[%clk 0:02:04.8]}
21. Kg2 {[%clk 0:01:26.5]} 21... Rd5 {[%clk 0:01:50.7]} 22. Re4 {[%clk
0:01:18.7]} 22... Bh6 {[%clk 0:01:49.2]} 23. Rae1 {[%clk 0:01:14]} 23... a5
{[%clk 0:01:43.7]} 24. Bc1 {[%clk 0:01:05]} 24... Bg7 {[%clk 0:01:40.6]} 25. f4
{[%clk 0:01:05]} 25... b5 {[%clk 0:01:40.4]} 26. Bd2 {[%clk 0:00:56.4]} 26...
Rd7 {[%clk 0:01:29.5]} 27. Ra1 {[%clk 0:00:35.2]} 27... Bd5 {[%clk 0:01:24.1]}
28. axb5 {[%clk 0:00:35.8]} 28... cxb5 {[%clk 0:01:23.4]} 29. Rxa5 {[%clk
0:00:36.5]} 29... f5 {[%clk 0:01:09.3]} 30. exf6 {[%clk 0:00:36.5]} 30... exf6
{[%clk 0:01:09.4]} 31. f3 {[%clk 0:00:15.5]} 31... Bxe4 {[%clk 0:01:06.2]} 32.
fxe4 {[%clk 0:00:15.9]} 32... c4 {[%clk 0:01:05.7]} 33. Rxb5 {[%clk 0:00:08.7]}
33... cxd3 {[%clk 0:01:03.7]} 34. c4 {[%clk 0:00:09.4]} 34... Ra8 {[%clk
0:00:52]} 35. Kf3 {[%clk 0:00:09.6]} 35... Ra2 {[%clk 0:00:46]} 36. Nf1 {[%clk
0:00:04.5]} 36... f5 {[%clk 0:00:16.8]} 37. e5 {[%clk 0:00:04.7]} 37... Bf8
{[%clk 0:00:15.1]} 38. c5 {[%clk 0:00:03.8]} 38... Rb2 {[%clk 0:00:14.2]} 39. b4
{[%clk 0:00:04.2]} 39... Rc7 {[%clk 0:00:14.6]} 40. Rb6 {[%clk 0:00:03.7]} 40...
Be7 {[%clk 0:00:09.9]} 41. Ke3 {[%clk 0:00:04.3]} 41... Rxc5 {[%clk 0:00:09]}
42. Rb8+ {[%clk 0:00:03.7]} 42... Kf7 {[%clk 0:00:08.2]} 43. Kxd3 {[%clk
0:00:02.9]} 43... Rd5+ {[%clk 0:00:05.5]} 44. Ke3 {[%clk 0:00:03.6]} 44... Bc5+
{[%clk 0:00:04.9]} 45. Ke2 {[%clk 0:00:04.3]} 45... Bd4 {[%clk 0:00:04.7]} 46.
Rb7+ {[%clk 0:00:03.7]} 46... Ke6 {[%clk 0:00:05.3]} 47. Kf3 {[%clk 0:00:04.1]}
47... Rb3+ {[%clk 0:00:04]} 48. Ke2 {[%clk 0:00:03.5]} 48... Bc3 {[%clk
0:00:04.4]} 49. Bxc3 {[%clk 0:00:02.7]} 49... Rxc3 {[%clk 0:00:05.3]} 50. Rb6+
{[%clk 0:00:02.8]} 50... Ke7 {[%clk 0:00:05.1]} 51. Rb7+ {[%clk 0:00:03.6]}
51... Ke6 {[%clk 0:00:05.2]} 52. Rb6+ {[%clk 0:00:03.6]} 52... Kd7 {[%clk
0:00:04.9]} 53. Rb7+ {[%clk 0:00:04.3]} 53... Kc6 {[%clk 0:00:05.3]} 54. Rxh7
{[%clk 0:00:04.6]} 54... Rd4 {[%clk 0:00:05.3]} 55. Rg7 {[%clk 0:00:03.9]} 55...
Rxf4 {[%clk 0:00:04.9]} 56. Rxg6+ {[%clk 0:00:03.9]} 56... Kb5 {[%clk
0:00:05.4]} 57. Rd6 {[%clk 0:00:03.7]} 57... Re4+ {[%clk 0:00:05]} 58. Kd2
{[%clk 0:00:04.4]} 58... Rf3 {[%clk 0:00:05.4]} 59. Rd5+ {[%clk 0:00:03]} 59...
Kc4 {[%clk 0:00:04.8]} 60. Rd8 {[%clk 0:00:01.5]} 60... Rxf1 {[%clk 0:00:04.6]}
0-1